Cogmind - Beta 16.1 @@@ ROGUE MODE // 2026.04.07 @ 15:11:56 Player: Lyft Result: Destroyed by Y-54 Guardian with Gatling Laser Performance ------------- Evolutions (0) 0 Regions Visited (3) 600 Robots Destroyed (40) 200 Value Destroyed (1000) 1000 Prototype IDs (13) 260 Alien Tech Used (0) 0 Bonus (0) 0 TOTAL SCORE: 2060 Bonus ------- None Cogmind --------- Core Integrity 0/250 Matter 217/300 Energy 200/200 System Corruption 0% Temperature Cool (20) Movement Treading (160) Location -7/Recycling Parts ------- > --- POWER (1) -------- Subdweller Power Source > --- PROPULSION (2) --- Medium Treads > --- UTILITY (2) ------ Medium Storage Unit Core Shielding > --- WEAPON (2) ------- Subdweller Machine Gun Advanced Assault Cannon > --- INVENTORY (10) --- Machine Analyzer Kinecellerator Improved Utility Shielding Tower Shield Makeshift System Shield Improved Trap Extractor (0/6) Remote Datajack Peak State ------------ > --- POWER ------------ Subdweller Power Source > --- PROPULSION ------- Light Treads Spiked Treads > --- UTILITY ---------- Core Shielding Gun Armor > --- WEAPON ----------- Shotgun Shotgun Shotgun Makeshift Sword > --- INVENTORY -------- Wheel Subdweller Monowheel Seismic Detector [Rating: 25] Favorites ----------- Power Subdweller Power Source Engine Subdweller Power Source Propulsion Light Treads Treads Light Treads Leg Aluminum Leg Wheel Compact Wheel Utility Core Shielding Device Seismic Detector Storage Small Storage Unit Protection Core Shielding Weapon Shotgun Energy Gun Small Laser Energy Cannon Subdweller Beam Cannon Ballistic Gun Shotgun Ballistic Cannon Advanced Assault Cannon Special Weapon Mining Laser Slashing Weapon Makeshift Sword Build | -11 -10 -10 -7 ------- Run | Yrd Mat Sub Rec Slots Evolved . | . . . . Power . | . . . . Propulsion . | . . . . Utility . | . . . . Weapon . | . . . . Parts Attached 38 | 3 2 27 6 Power 4 | . . 4 . Engine 4 | . . 4 . Core . | . . . . Reactor . | . . . . Propulsion 10 | 2 . 5 3 Treads 5 | 1 . 2 2 Leg . | . . . . Wheel 5 | 1 . 3 1 Hover . | . . . . Flight . | . . . . Utility 8 | 1 . 6 1 Device 4 | 1 . 3 . Storage 2 | . . 1 1 Processor . | . . . . Hackware . | . . . . Protection 2 | . . 2 . Artifact . | . . . . Weapon 16 | . 2 12 2 Energy Gun . | . . . . Energy Cannon 4 | . . 4 . Ballistic Gun 7 | . 2 5 . Ballistic Cannon 2 | . . 1 1 Launcher . | . . . . Special Weapon 1 | . . 1 . Impact Weapon . | . . . . Slashing Weapon 2 | . . 1 1 Piercing Weapon . | . . . . Special Melee Weapon . | . . . . Unidentified Prototypes 1 | . . 1 . Parts Lost 10 | . . 7 3 Power . | . . . . Propulsion 5 | . . 3 2 Utility 2 | . . 2 . Weapon 3 | . . 2 1 Highest Loss Streak 2 | . . 2 2 To Critical Strikes . | . . . . Average Backups 4 | 6 6 4 5 Power . | 1 1 . . Propulsion 1 | 3 2 1 . Utility 1 | . . 1 3 Weapon 1 | 1 3 1 . Tool/Special . | . . . . Unused Backups 20 | . 7 6 7 Power 3 | . 1 2 . Propulsion 3 | . . 3 . Utility 7 | . 1 . 6 Weapon 6 | . 5 1 . Tool/Special 1 | . . . 1 Average Slot Usage (%) 93 | . 100 93 96 Engine 13 | . 14 13 14 Treads 19 | . 14 21 7 Wheel 5 | . 14 3 20 Device 7 | . 14 7 4 Storage 2 | . 14 1 9 Protection 12 | . . 13 14 Energy Cannon 10 | . . 12 3 Ballistic Gun 15 | . 24 16 9 Slashing Weapon 3 | . . 2 8 Peak Build Rating 25 | 7 10 25 20 Average Rating 14 | 6 9 14 17 On Entrance 9 | 6 7 10 16 Avg Prop Armor Cover (%) 10 | 14 12 7 16 Naked Turns . | . . . . Heaviest Build 25 | 13 17 25 24 Greatest Support 40 | 20 16 40 40 Greatest Overweight (x) 1 | . 1 1 1 Average Overweight (x) . | . . . . Largest Inventory Capacity 10 | 8 8 8 10 Average Capacity 5 | 8 8 5 8 Most Carried 10 | 8 8 8 10 Average Carried 5 | 6 6 4 6 Final Capacity 10 | 8 8 5 10 Final Carried 8 | 5 8 3 8 Class Distribution -------------------- 73% | Mutant 11% | Skirmisher 9% | Tank 5% | Scavenger-Mutant Dominant Class ---------------- Mutant | -10/Materials Mutant | -10/Subcaves Mutant | -7/Recycling Resources | -11 -10 -10 -7 ----------- Run | Yrd Mat Sub Rec Matter Collected 1136 | 250 108 694 84 Remotely . | . . . . Salvage Created 1865 | 140 249 834 642 Parts 89 | 4 11 57 17 Haulers Intercepted . | . . . . Recyclers Shooed 5 | . 3 . 2 Parts Field Recycled . | . . . . Retrieved Matter . | . . . . Parts Self-Destructed 19 | . . 19 . Prevented . | . . . . Parts Restored . | . . . . Kills | -11 -10 -10 -7 ------- Run | Yrd Mat Sub Rec Combat Hostiles Destroyed 26 | . 5 21 . Guns 17 | . 5 12 . Cannons 9 | . . 9 . Classes Destroyed 6 | 2 2 2 . Tunneler 2 | 2 . . . Recycler 12 | 1 2 . 9 Swarmer 4 | . 3 1 . Grunt 4 | . 2 2 . Sentry 1 | . . 1 . Subdweller 17 | . . 17 . Best Kill Streak 8 | 2 7 2 8 Combat Bots Only 5 | . 5 2 . Max Kills in Single Turn 2 | 1 2 2 1 Gunslinging 1 | . 1 1 . Exploded . | . . . . Melee . | . . . . Uniques/NPCs Destroyed . | . . . . Combat | -11 -10 -10 -7 -------- Run | Yrd Mat Sub Rec Hostile Shots Fired 218 | . 17 93 108 Missed 78 | . 4 27 47 Hits 140 | . 13 66 61 Projectile 140 | . 13 66 61 AOE 1 | . . 1 . Damage Taken 2024 | . 96 1473 455 Core 256 | . 32 132 92 Absorbed by Shields . | . . . . Redirected to Shielding 41 | . . 20 21 Core Remaining (%) 100 | 100 . . . Volleys Fired 158 | 20 11 114 13 Largest 3 | 2 2 3 2 Hottest 160 | 60 46 160 70 Shots Fired 276 | 40 22 197 17 Gun 179 | 40 22 112 5 Cannon 87 | . . 75 12 Launcher . | . . . . Special 10 | . . 10 . Kinetic 177 | 20 22 118 17 Thermal 99 | 20 . 79 . Explosive . | . . . . Electromagnetic . | . . . . Robot Hit Streak 16 | 4 8 16 9 Robot Miss Streak 10 | 3 10 4 2 Penetration Max . | . . . . Secondary Targets 2 | . 1 1 . Max Gunslinging Chain 1 | . 1 1 . Shots Hit Robots 149 | 21 12 93 23 Core Hits 64 | 5 11 39 9 Critical Kills 1 | . . 1 . Critical Parts Destroyed . | . . . . Critical Strikes 2 | . . 1 1 Destroy 1 | . . 1 . Sever 1 | . . . 1 Melee Attacks 57 | . . 47 10 Impact . | . . . . Slashing 57 | . . 47 10 Piercing . | . . . . Sneak Attacks 6 | . . . 6 Combat Hostiles . | . . . . Follow-up Attacks . | . . . . Damage Inflicted 2838 | 201 208 1590 839 Guns 1315 | 201 208 844 62 Cannons 1020 | . . 746 274 Explosions . | . . . . Melee 503 | . . . 503 Ramming . | . . . . Kinetic 1532 | 90 208 898 336 Thermal 803 | 111 . 692 . Explosive . | . . . . Electromagnetic . | . . . . Impact . | . . . . Slashing 503 | . . . 503 Piercing . | . . . . Highest Corruption . | . . . . Average Corruption . | . . . . Corruption Purged . | . . . . Corruption Blocked . | . . . . Overload Shots . | . . . . Overflow Damage 63 | . . . 63 Projectiles . | . . . . Explosions . | . . . . Melee 63 | . . . 63 Knockbacks . | . . . . Impact . | . . . . Kinetic . | . . . . Secondary . | . . . . Self-Inflicted Damage . | . . . . Shots . | . . . . Rammed . | . . . . Targets Rammed . | . . . . Kicked . | . . . . Crushed . | . . . . Highest Temperature 60 | 60 1 48 20 Average Temperature 18 | 22 1 16 11 Received Heat Transfer 486 | . 12 336 138 Siege Activations . | . . . . Martial Activations . | . . . . Shielding Activations . | . . . . Robots Disrupted . | . . . . Combat Hostiles . | . . . . Robots Corrupted . | . . . . Combat Hostiles . | . . . . Parts Fried . | . . . . Impact Corruptions . | . . . . Robots Melted . | . . . . Combat Hostiles . | . . . . Parts Melted 2 | . . 2 . Heat Transferred 1175 | 250 . 925 . Parts Sabotaged . | . . . . Parts Stolen . | . . . . Parts Stripped . | . . . . Power Chain Reactions . | . . . . Alert | -11 -10 -10 -7 ------- Run | Yrd Mat Sub Rec Maximum Alert Level . | . . . . Low Security (%) 100 | 100 100 . 100 Level 1 . | . . . . Level 2 . | . . . . Level 3 . | . . . . Level 4 . | . . . . Level 5 . | . . . . High Security . | . . . . Max Security . | . . . . Peak Influence 150 | 10 150 . 115 Initial 14 | . . . 14 Average 28 | 1 87 . 11 Influence Increases 523 | 15 180 90 238 Destroy 0b10 Robot/C 180 | . 100 80 . Destroy 0b10 Robot/NC 70 | 15 10 . 45 Destroy Leader 30 | . 20 10 . Successful Hack 16 | . 5 . 11 Select Force Hacks 150 | . . . 150 Destroy Structure 2 | . . . 2 Lose Combat Pursuer 75 | . 45 . 30 Influence Decreases 425 | 15 110 130 170 Entered New Map 50 | . . 34 16 Time Decay 345 | 15 110 76 144 Lost Part 30 | . . 20 10 Squads Dispatched 1 | . 1 . . Investigation 1 | . 1 . . Extermination . | . . . . Reinforcement . | . . . . Assault . | . . . . Garrison . | . . . . Intercept . | . . . . Searches Triggered . | . . . . Construction Impeded . | . . . . Haulers Reinforced . | . . . . Active Scanning Responses . | . . . . Cargo Convoy Interrupts . | . . . . Stealth | -11 -10 -10 -7 --------- Run | Yrd Mat Sub Rec Distress Signals . | . . . . Communications Jammed . | . . . . Distress Signals . | . . . . Times Spotted 28 | . 5 20 3 Peak Tracking Total 5 | . 5 3 2 Tactical Retreats 2 | . 1 . 1 Traps | -11 -10 -10 -7 ------- Run | Yrd Mat Sub Rec Traps Triggered 1 | . 1 . . Indirectly . | . . . . Trap Hack Attempts . | . . . . Triggered . | . . . . Disarmed . | . . . . Reprogrammed . | . . . . Reused . | . . . . Traps Extracted . | . . . . Installed . | . . . . Triggered . | . . . . Machines | -11 -10 -10 -7 ---------- Run | Yrd Mat Sub Rec Machines Disabled 1 | . . 1 . Max in Single Turn 1 | . . 1 . Machines Repaired . | . . . . Machines Dismantled . | . . . . Machines Sabotaged . | . . . . Overloaded Fab Kills . | . . . . Hacking | -11 -10 -10 -7 --------- Run | Yrd Mat Sub Rec Machines Accessed 12 | . 1 2 9 Terminals 5 | . 1 . 4 Fabricators . | . . . . Repair Stations . | . . . . Recycling Units 5 | . . . 5 Scanalyzers . | . . . . Garrison Access . | . . . . Total Hacks 41 | . 5 12 24 Successful 28 | . 1 12 15 Failed 13 | . 4 . 9 Catastrophic 6 | . 1 . 5 Database Lockouts . | . . . . Manual 10 | . 5 . 5 Terminals 18 | . 5 . 13 Fabricators . | . . . . Repair Stations . | . . . . Recycling Units 11 | . . . 11 Scanalyzers . | . . . . Garrison Access . | . . . . Terminal Hacks 16 | . . 12 4 Record 12 | . . 11 1 Alert Level 1 | . . . 1 Registered Components 1 | . . . 1 Registered Prototypes 1 | . . . 1 Proto ID Catalog 1 | . . 1 . Fabricator Hacks . | . . . . Repair Station Hacks . | . . . . Recycling Unit Hacks 6 | . . . 6 Report Inventory 3 | . . . 3 Retrieve Components 3 | . . . 3 Scanalyzer . | . . . . Garrison Access Hacks . | . . . . Unauthorized Hacks 6 | . 1 . 5 Terminals 1 | . 1 . . Botnet 1 | . 1 . . Fabricators . | . . . . Repair Stations . | . . . . Recycling Units 5 | . . . 5 Tunnel 5 | . . . 5 Scanalyzers . | . . . . Garrison Access . | . . . . Data Cores Recovered . | . . . . Used . | . . . . Hacking Detections 6 | . 1 . 5 Full Trace Events 3 | . . . 3 Feedback Events . | . . . . Feedback Blocked . | . . . . Robot Schematics Acquired . | . . . . Robots Built . | . . . . Authchips . | . . . . Time . | . . . . Total Robot Build Rating . | . . . . Part Schematics Acquired . | . . . . Parts Built . | . . . . Authchips . | . . . . Time . | . . . . Total Part Build Rating . | . . . . Part Studies Acquired . | . . . . Parts Repaired . | . . . . Time . | . . . . Parts Recycled . | . . . . Recycled Matter . | . . . . Retrieved Matter . | . . . . Retrieved Components 6 | . . . 6 Parts Scanalyzed . | . . . . Part Schematics Acquired . | . . . . Parts Damaged . | . . . . Bothacking | -11 -10 -10 -7 ------------ Run | Yrd Mat Sub Rec Used RIF Installer . | . . . . Robots Hacked . | . . . . Non-combat . | . . . . Combat . | . . . . Robot Hacks Applied . | . . . . Relay Couplers Released . | . . . . Fabnet Peak Effective % . | . . . . Robots Rewired . | . . . . Allies Hacked . | . . . . Hacks Repelled . | . . . . Allies | -11 -10 -10 -7 -------- Run | Yrd Mat Sub Rec Total Allies . | . . . . Largest Group . | . . . . Highest-Rated Group . | . . . . Highest-Rated Ally . | . . . . Total Orders . | . . . . Ally Attacks . | . . . . Total Damage . | . . . . Kills . | . . . . Allies Corrupted . | . . . . Allies Melted . | . . . . Intel | -11 -10 -10 -7 ------- Run | Yrd Mat Sub Rec Active Infowar (turns) 2916 | 15 263 2638 . Structural 1155 | . . 1155 . Seismic 1761 | 15 263 1483 . Robot Analysis Total . | . . . . Derelict Logs Recovered 2 | . . 2 . Drone Launches . | . . . . Drone Recoveries . | . . . . Exploration | -11 -10 -10 -7 ------------- Run | Yrd Mat Sub Rec Turns Passed 6627 | 164 263 5551 649 Spaces Moved 3176 | 88 132 2451 505 Core . | . . . . Treads 2003 | . . 2003 . Legs 73 | 73 . . . Wheels 1100 | 15 132 448 505 Hover . | . . . . Flight . | . . . . Fastest Speed 100 | 100 100 100 105 Average Speed 155 | 116 110 167 111 Slowest Speed 240 | 120 115 240 120 Overloaded Moves . | . . . . Propulsion Burnouts . | . . . . Robots Hopped . | . . . . Potential Cave-ins . | . . . . Cave-ins Triggered . | . . . . Exploration Rate (%) 50 | 3 24 96 79 Regions Visited 3 Branch Regions 2 Pre-discovered Areas 5 | . . . 5 Known Exits Taken 1 | . . 1 . Unknown Exits Taken 2 | 1 1 . . Scrap Searched 14 | . . 14 . Spaces Dug 33 | . . 33 . Terrain Destroyed 41 | . . 39 2 Melee 11 | . . 11 . Projectile 30 | . . 28 2 AOE . | . . . . Terrain Rammed . | . . . . Walls Destroyed . | . . . . Machines Disabled . | . . . . Actions | -11 -10 -10 -7 --------- Run | Yrd Mat Sub Rec Total 4545 | 114 230 3642 559 Wait 1028 | . 76 952 . Move 3173 | 87 131 2450 505 Hop . | . . . . Pick Up 38 | 2 6 21 9 Fast Attach 9 | . . 7 2 Attach 25 | 3 1 15 6 Detach 2 | . . . 2 Swap 11 | . 1 10 . Drop 36 | 2 4 26 4 Fire 158 | 20 11 114 13 Melee 57 | . . 47 10 Ram . | . . . . Kick . | . . . . Crush . | . . . . Escape Stasis . | . . . . Rewire 8 | . . . 8 Trap . | . . . . Miscellaneous . | . . . . Route ------- -11/Scrapyard -10/Materials -10/Subcaves (discovered 3 exits: [*Mat x2] / *Rec) -7/Recycling (discovered 1 exit: [*Fac]) History --------- Turn | Location | Event 1 | -11/Scrapyard | Discovered new exit (range 1) 165 | -11/Scrapyard | Entered Materials 310 | -10/Materials | Build established: Mutant 412 | -10/Materials | Discovered new exit (range 8) 428 | -10/Materials | Entered Subcaves 429 | -10/Subcaves | Approached by a straggling Scientist 483 | -10/Subcaves | Shifting Twisted Machinery released Sub. Power Source 702 | -10/Subcaves | Discovered new exit (range 5) 810 | -10/Subcaves | Visited Clippyterm 814 | -10/Subcaves | Learned Factory stockpile data 818 | -10/Subcaves | A Subdweller sparked back to life 873 | -10/Subcaves | Found Prototype Protection 874 | -10/Subcaves | Identified Gun Armor 875 | -10/Subcaves | Attached Gun Armor, gained temporary slots: Weapon x2 948 | -10/Subcaves | Shifting Twisted Machinery released Sub. Machine Gun 950 | -10/Subcaves | Shifting Twisted Machinery released Battle Cannon 1090 | -10/Subcaves | Shifting Twisted Machinery released Battle Rifle 1134 | -10/Subcaves | Shifting Twisted Machinery released Spk. Treads 1162 | -10/Subcaves | Build established: Skirmisher 1240 | -10/Subcaves | Discovered new exit (range 15) 1433 | -10/Subcaves | A swath of the cavern ceiling suddenly collapsed 1481 | -10/Subcaves | Identified exit to Recycling 1945 | -10/Subcaves | Build established: Tank 2556 | -10/Subcaves | Build established: Mutant 3822 | -10/Subcaves | Learned 2 Materials zone layouts 4366 | -10/Subcaves | A swath of the cavern ceiling suddenly collapsed 4547 | -10/Subcaves | Core integrity fell below 50% 5017 | -10/Subcaves | Visited 4L-MR0's lab 5059 | -10/Subcaves | Found Tower Shield 5979 | -10/Subcaves | Entered Recycling 6095 | -7/Recycling | Build established: Scavenger-Mutant 6281 | -7/Recycling | Discovered new exit (range 16) 6482 | -7/Recycling | Build established: Mutant 6521 | -7/Recycling | Core integrity fell below 20% 6628 | -7/Recycling | Destroyed by Y-54 Guardian with Gatling Laser Last Messages --------------- Med. Treads >>Force(Tunnel) DISCOVERED[-9/Materials] 06597_ Acquired Med. Treads. 06601_ Connecting with Recycling Unit... >>Recycling(Report) Matter reserves: 0 Inventory: Recalibrator (44%) Recalibrator (48%) >>Retrieve(Components) Retrieving 2 components... Recalibrator Recalibrator 06603_ Connecting with Recycling Unit... >>Force(Tunnel) DISCOVERED[-10/Mines] 06603_ Dropped Com. Wheel. 06620_ Destroyed Imp. Heat Sink. 06628_ Sub. Monowheel destroyed. Map ----- +----------------------------------------------------+ | ????????????????????????????? | | ????????????????????????????? | | ????????????????????????????? | | ????????????????????????????? | | ????????????????????????????? | | ????????????????????????????? | | ????????????????????????????? | | ????###?????????????????????? | | ???# +?????????????????????? | | ???! ??????????????????????? | | ???! ????????????###???????? | | ???! ????????????+ #???????? | | ???# ????????????# #???????? | | ???# ?###+######## #???????? | | ???# #???????? | | ???# ########+##### #???????? | | ?###%# # #######?? | | ?#"" + # +?? | | ?#"Y # # #####?? | | ?#""Y# """ """ # ###???? | | ?### # """ """ # ""#???? | | ?### # """ """ + Y"#???? | | ?#"" # # ""#???? | | ?#"Y!; """ # ###???? | | ?#""!# "" """ # #?????? | | ?###@# "T """ # ###???? | | ???# # "" # !!#???? | | ???# # # !#???? | | ???# ############## !!#???? | | ???# #????????????# ###???? | | ???# #????????????# #?????? | | ???# #????????????# ###???? | | ???# #????????????# T#???? | | ???# #????????????# ""#???? | | ???# #????????????# ###???? | | ???# ############## #?????? | | ???# # # #?????? | | ???# # # #?????? | | ???# # # #?????? | | ???# # # ####### | | ???# # """"" # | | ???#%# """"" + | | ??##%# """"" # | | ??#% # % # ####### | | ???# + """""% # T"#???? | | ???#%# """"" # ""#???? | | ???# # """"" # ###???? | | ???# # # ! #???? | | ???# ############## !!#???? | | ???# #?????###????# !!#???? | +----------------------------------------------------+ Best States ------------- Heat Dissipation 39 Energy Generation 15 Energy Capacity 250 Matter Stores 300 Matter Capacity 300 Sight Range 16 Terrain Scan Density 10 Armor Coverage 60 Core Shielding 20 Evasion (%) 55 Recoil Reduction 2 Item Schematics ----------------- None Robot Schematics ------------------ None Fabricated ------------ Nothing Repaired ---------- Nothing Studied --------- None Alien Tech Used ----------------- None Achievements -------------- None Challenges ------------ None Game ------ Seed PitchforkSpikedFlakker Manual? 0 Play Time 00:39:55 Cumulative 71.0 hours Start 2026.04.07 @ 14:33:15 End 2026.04.07 @ 15:11:56 Sessions 1 Manual Loads 0 Difficulty Rogue Special Mode None Game No. 63 Rogue 53 Adventurer 9 Explorer 1 Win Type - Total 0 Types 0/0/0/0/0/0/0/0/0/0 Lore% 37 Gallery% 34 Achievement% 27 Wizard Run 0 Options --------- Layout 2 ASCII 0 Keyboard 0 Movement Mouse Keybinds 0 Fullscreen 1 Font 48/Terminus Map View 50x44 Zoom Use 0% Tactical HUD 1 Map Filters NONE Filters NONE Steam 1 RUN: dfaae2e6-c71d-49f8-9f91-6fa5e765a0c2